bitfinex/quotes_SOLUSD_20230120
["timestamp","ask_amount","ask_price","bid_price","bid_amount"]
[1674221219904,108.3282,21.296,21.286,10.0]
[1674221220114,35.22,21.301,21.288,10.0]
[1674221220314,17.0,21.3,21.289,20.0]
[1674221220517,35.22,21.299,21.289,20.0]
[1674221220731,17.0,21.298,21.289,20.0]
[1674221221184,17.0,21.298,21.287,20.0]
[1674221221379,17.0,21.3,21.287,20.0]
[1674221221702,10.0,21.298,21.287,20.0]
[1674221222750,35.22,21.299,21.287,20.0]
[1674221222946,35.22,21.302,21.288,0.96]
[1674221223386,35.22,21.302,21.288,10.96]
[1674221223589,35.22,21.302,21.289,20.0]
[1674221223797,35.22,21.302,21.29,20.95]
[1674221223999,119.894,21.306,21.291,17.0]
[1674221224211,119.894,21.306,21.292,10.96]
[1674221224548,119.894,21.306,21.293,17.0]
[1674221224758,119.894,21.306,21.294,10.96]
[1674221226106,10.0,21.305,21.291,10.0]
[1674221226437,52.21,21.304,21.29,19.99]
[1674221226961,10.0,21.303,21.29,19.99]
[1674221227173,17.0,21.302,21.29,19.99]
[1674221227784,10.0,21.301,21.291,0.96]
[1674221229595,35.22,21.3,21.291,0.96]
[1674221229790,45.22,21.301,21.291,0.96]
[1674221231157,45.22,21.301,21.29,19.99]
[1674221231365,17.0,21.3,21.289,20.0]
[1674221231578,35.22,21.299,21.287,20.0]
[1674221231791,35.22,21.299,21.288,0.96]
[1674221232121,10.0,21.298,21.288,0.96]
[1674221232298,35.23,21.297,21.286,0.96]
[1674221232735,35.23,21.297,21.284,10.0]
[1674221232939,10.0,21.296,21.282,55.87346347]
[1674221233365,10.0,21.296,21.283,24.58448197]
[1674221233787,10.0,21.296,21.283,10.0]
[1674221235055,10.0,21.296,21.284,0.96]
[1674221236402,10.0,21.296,21.283,0.96]
[1674221237573,10.0,21.294,21.283,0.96]
[1674221240187,10.0,21.294,21.281,0.96]
[1674221240624,10.0,21.294,21.281,15.54448197]
[1674221240841,10.0,21.294,21.281,14.58448197]
[1674221241028,35.23,21.295,21.282,10.0]
[1674221241476,35.23,21.295,21.283,14.58448197]
[1674221242104,35.23,21.295,21.284,0.96]
[1674221242622,149.3085,21.296,21.284,0.96]
[1674221245145,27.0,21.295,21.281,10.0]
[1674221245359,35.23,21.294,21.28,14.58448197]
[1674221245671,17.0,21.293,21.277,45.87346347]
[1674221245866,35.23,21.292,21.279,10.0]
[1674221246072,35.23,21.292,21.28,20.01]
[1674221246307,35.23,21.295,21.28,34.59448197]
[1674221246523,35.23,21.295,21.281,14.58448197]
[1674221246914,10.0,21.294,21.282,0.96]
[1674221247159,10.0,21.294,21.281,15.54448197]
[1674221247354,35.23,21.293,21.282,10.0]
[1674221247544,35.23,21.293,21.283,0.96]
[1674221247757,35.23,21.295,21.283,0.96]
[1674221248614,10.0,21.294,21.282,0.96]
[1674221248927,35.23,21.293,21.282,0.96]
[1674221249964,35.23,21.295,21.282,25.54448197]
[1674221250179,35.23,21.295,21.282,42.54448197]
[1674221251786,35.23,21.295,21.282,10.96]
[1674221251787,10.0,21.294,21.282,10.96]
[1674221252315,35.23,21.293,21.282,10.96]
[1674221252496,10.0,21.292,21.28,65.88346347]
[1674221253770,10.0,21.292,21.281,0.96]
[1674221253974,35.24,21.291,21.275,10.0]
[1674221254180,17.0,21.291,21.278,20.0]
[1674221255117,17.0,21.291,21.278,34.58448197]
[1674221255338,17.0,21.291,21.279,0.96]
[1674221255565,17.0,21.291,21.279,10.96]
[1674221255753,17.0,21.293,21.279,10.96]
[1674221255961,35.23,21.292,21.279,10.96]
[1674221256172,17.0,21.291,21.279,10.96]
[1674221256594,10.0,21.291,21.279,10.96]
[1674221256931,17.0,21.29,21.279,10.96]
[1674221257338,17.0,21.29,21.279,0.96]
[1674221257870,17.0,21.29,21.279,10.96]
[1674221258073,10.0,21.291,21.279,10.96]
[1674221259145,10.0,21.292,21.279,10.96]
[1674221259318,10.0,21.292,21.28,15.04]
[1674221259319,17.0,21.291,21.28,15.04]
[1674221259537,17.0,21.291,21.281,0.96]
[1674221260289,17.0,21.291,21.278,20.0]
[1674221260500,35.24,21.29,21.275,10.0]
[1674221260709,17.0,21.289,21.274,10.0]
[1674221260912,10.0,21.288,21.273,45.87346347]
[1674221261118,17.0,21.287,21.273,45.87346347]
[1674221262499,17.0,21.287,21.274,10.0]
[1674221262814,52.24,21.287,21.274,10.0]
[1674221263222,17.0,21.287,21.274,10.0]
[1674221263447,17.0,21.288,21.276,10.0]
[1674221263760,17.0,21.288,21.278,10.0]
[1674221263945,17.0,21.289,21.279,20.0]
[1674221264809,117.6378,21.29,21.279,20.0]
[1674221266915,117.6378,21.29,21.28,15.54448197]
[1674221267126,10.0,21.289,21.279,20.0]
[1674221267840,10.0,21.289,21.276,14.58448197]
[1674221268044,17.0,21.288,21.276,14.58448197]
[1674221268696,10.0,21.286,21.272,10.0]
[1674221268911,17.0,21.285,21.273,15.54448197]
[1674221269101,52.24,21.288,21.273,0.96]
[1674221269313,17.0,21.288,21.273,0.96]
[1674221270281,17.0,21.288,21.272,45.27]
[1674221270598,10.96,21.287,21.272,10.0]
[1674221270779,17.0,21.286,21.272,10.0]
[1674221271222,17.0,21.286,21.27,44.18495528]
[1674221271423,17.0,21.286,21.27,79.45495528]
[1674221271847,10.0,21.285,21.27,44.18495528]
[1674221272041,17.96,21.284,21.27,44.18495528]
[1674221272462,10.0,21.283,21.27,44.18495528]
[1674221272672,17.0,21.284,21.271,10.0]
[1674221272905,17.0,21.284,21.272,35.27]
[1674221273122,17.0,21.284,21.273,10.0]
[1674221273451,10.0,21.289,21.274,35.26]
[1674221273638,10.0,21.287,21.275,20.0]
[1674221273830,17.0,21.286,21.275,20.0]
[1674221274375,17.0,21.286,21.274,20.0]
[1674221274584,17.0,21.286,21.273,10.0]
[1674221274998,17.0,21.286,21.271,45.27]
[1674221275211,17.0,21.286,21.272,0.96]
[1674221276570,17.0,21.286,21.271,45.27]
[1674221276781,0.96,21.285,21.271,10.0]
[1674221277335,0.96,21.285,21.27,54.18495528]
[1674221277538,128.766,21.285,21.27,44.18495528]
[1674221277748,17.0,21.284,21.27,44.18495528]
[1674221277959,10.0,21.283,21.27,44.18495528]
[1674221278152,17.0,21.282,21.27,79.45495528]
[1674221278363,17.0,21.282,21.271,10.0]
[1674221278996,117.806,21.285,21.282,0.07644776]
[1674221281004,17.0,21.284,21.282,0.07644776]
[1674221281216,117.6378,21.29,21.282,0.07644776]
[1674221282256,10.0,21.289,21.282,0.07644776]
[1674221282465,17.0,21.288,21.282,0.07644776]
[1674221282881,10.0,21.287,21.282,0.07644776]
[1674221283093,17.0,21.286,21.282,0.07644776]
[1674221283518,10.0,21.285,21.282,0.07644776]
[1674221283736,17.0,21.284,21.282,0.07644776]
[1674221283952,16.89089247,21.284,21.282,0.07644776]
[1674221284475,10.0,21.289,21.282,0.07644776]
[1674221286148,10.0,21.287,21.282,0.07644776]
[1674221286467,17.0,21.286,21.282,0.07644776]
[1674221287091,117.6378,21.29,21.282,0.07644776]
[1674221289137,17.0,21.289,21.282,0.07644776]
[1674221289748,117.6378,21.29,21.282,0.07644776]
[1674221291326,45.23,21.297,21.282,0.07644776]
[1674221291525,10.0,21.299,21.282,0.07644776]
[1674221291727,35.22,21.298,21.282,48.03644776]
[1674221291955,35.22,21.298,21.282,30.07644776]
[1674221292273,35.22,21.298,21.283,0.96]
[1674221292462,35.22,21.298,21.283,10.96]
[1674221292671,35.22,21.298,21.284,20.0]
[1674221292888,10.0,21.299,21.285,0.96]
[1674221293099,10.0,21.299,21.285,10.96]
[1674221293428,35.22,21.298,21.287,10.0]
[1674221293953,35.22,21.298,21.288,20.0]
[1674221294349,17.0,21.297,21.286,20.0]
[1674221295322,17.0,21.297,21.285,10.0]
[1674221295528,17.0,21.297,21.286,0.96]
[1674221296060,52.22,21.298,21.286,20.96]
[1674221296989,35.22,21.3,21.286,20.96]
[1674221297210,35.21,21.305,21.29,15.04]
[1674221297405,35.21,21.305,21.291,10.96]
[1674221297945,10.0,21.304,21.291,10.96]
[1674221298149,35.22,21.303,21.29,15.04]
[1674221298364,17.0,21.302,21.288,10.0]
[1674221298559,35.22,21.301,21.289,20.0]
[1674221298896,17.0,21.3,21.289,20.0]
[1674221299413,17.0,21.3,21.283,45.25]
[1674221299414,10.0,21.299,21.283,45.25]
[1674221299627,10.0,21.299,21.278,79.06040511]
[1674221299628,10.0,21.297,21.278,79.06040511]
[1674221299815,52.23,21.296,21.278,79.06040511]
[1674221300026,10.0,21.295,21.278,79.06040511]
[1674221300250,17.0,21.294,21.278,79.06040511]
[1674221300662,153.8198,21.296,21.278,79.06040511]
[1674221301080,118.5898,21.296,21.283,0.96]
[1674221301292,118.5898,21.296,21.283,17.96]
[1674221301705,118.5898,21.296,21.284,10.0]
[1674221301931,118.5898,21.296,21.285,0.96]
[1674221302340,10.0,21.295,21.285,0.96]
[1674221302550,10.0,21.295,21.283,0.96]
[1674221302778,45.23,21.295,21.283,0.96]
[1674221302992,35.23,21.295,21.283,0.96]
[1674221303815,35.22,21.298,21.283,15.54448197]
[1674221304039,27.0,21.297,21.283,15.54448197]
[1674221304240,35.23,21.296,21.283,15.54448197]
[1674221304553,27.0,21.295,21.282,0.07644776]
[1674221304764,35.23,21.294,21.282,0.07644776]
[1674221304991,10.0,21.292,21.282,0.07644776]
[1674221305921,35.23,21.294,21.282,0.07644776]
[1674221307383,10.0,21.293,21.282,0.07644776]
[1674221307808,17.0,21.292,21.282,0.07644776]
[1674221308020,52.23,21.292,21.282,0.07644776]
[1674221308244,10.0,21.291,21.282,0.07644776]
[1674221310147,17.0,21.292,21.282,0.07644776]
[1674221310328,35.23,21.294,21.282,0.07644776]
[1674221310554,259.471,21.296,21.282,0.07644776]
[1674221311194,10.0,21.295,21.282,0.07644776]
[1674221311407,35.23,21.294,21.282,0.07644776]
[1674221311616,17.0,21.293,21.282,0.07644776]
[1674221313821,10.0,21.292,21.282,0.07644776]
[1674221314020,17.0,21.291,21.282,0.07644776]
[1674221315798,45.24,21.29,21.282,0.07644776]
[1674221316009,17.0,21.289,21.282,0.07644776]
[1674221317689,52.24,21.291,21.282,0.07644776]
[1674221317911,10.0,21.29,21.282,0.07644776]
[1674221318111,0.02545123,21.282,21.279,20.0]
[1674221319068,0.02545123,21.282,21.278,20.0]
[1674221321302,0.02545123,21.282,21.279,10.0]
[1674221321719,16.52545123,21.289,21.279,10.0]
[1674221321925,35.23,21.294,21.279,10.0]
[1674221322541,10.0,21.293,21.279,10.0]
[1674221322757,35.23,21.292,21.279,10.0]
[1674221323505,35.23,21.292,21.28,0.96]
[1674221324145,35.23,21.292,21.279,10.0]
[1674221324448,17.0,21.291,21.279,10.0]
[1674221324660,35.24,21.29,21.279,10.0]
[1674221324845,17.0,21.289,21.279,10.0]
[1674221325056,17.0,21.291,21.279,10.0]
[1674221326234,10.0,21.29,21.278,20.0]
[1674221326446,17.0,21.289,21.279,10.0]
[1674221327267,52.24,21.29,21.279,10.0]
[1674221328338,52.24,21.29,21.278,20.0]
[1674221328530,10.0,21.289,21.278,20.0]
[1674221328748,17.0,21.288,21.278,20.0]
[1674221329179,17.0,21.289,21.278,20.0]
[1674221329582,17.0,21.289,21.279,10.0]
[1674221331479,35.24,21.29,21.279,10.0]
[1674221331692,35.23,21.294,21.279,10.0]
[1674221332020,10.0,21.293,21.279,10.0]
[1674221332862,10.0,21.291,21.279,10.0]
[1674221333170,17.0,21.29,21.279,10.0]
[1674221334315,17.0,21.291,21.279,10.0]
[1674221336534,17.0,21.291,21.28,15.96]
[1674221336856,35.23,21.292,21.28,15.96]
[1674221337052,35.23,21.292,21.281,10.0]
[1674221337251,45.23,21.295,21.281,10.0]
[1674221337903,45.23,21.295,21.28,25.0]
[1674221338742,45.23,21.295,21.281,10.0]
[1674221338958,17.96,21.294,21.281,10.0]
[1674221339370,17.0,21.294,21.281,10.0]
[1674221339582,35.23,21.293,21.281,10.0]
[1674221339775,17.0,21.292,21.281,10.0]
[1674221340405,17.0,21.293,21.281,10.0]
[1674221342850,35.23,21.294,21.281,10.0]
[1674221343061,10.0,21.303,21.282,0.96]
[1674221343062,35.22,21.298,21.282,0.96]
[1674221343590,10.0,21.303,21.282,0.96]
[1674221343591,35.22,21.301,21.282,0.96]
[1674221343783,35.22,21.301,21.282,17.96]
[1674221343994,35.22,21.301,21.283,10.0]
[1674221344212,35.22,21.301,21.284,0.96]
[1674221345591,35.22,21.301,21.281,10.0]
[1674221345776,10.0,21.294,21.281,10.0]
[1674221345986,52.23,21.293,21.281,10.0]
[1674221346935,17.0,21.293,21.282,0.96]
[1674221348001,17.0,21.294,21.282,0.96]
[1674221348214,35.22,21.301,21.282,0.96]
[1674221348413,35.22,21.301,21.282,17.96]
[1674221348623,35.22,21.301,21.283,10.0]
[1674221348822,35.22,21.301,21.284,0.96]
[1674221349256,35.23,21.295,21.284,0.96]
[1674221353235,17.0,21.294,21.281,10.0]
[1674221353457,35.23,21.293,21.281,10.0]
[1674221353670,17.0,21.292,21.281,10.0]
[1674221353882,35.24,21.291,21.281,10.0]
[1674221354726,10.0,21.29,21.28,15.0]
[1674221354934,17.0,21.289,21.28,15.0]
[1674221355762,52.24,21.289,21.28,15.0]
[1674221357971,17.0,21.289,21.28,15.0]
[1674221358724,17.0,21.289,21.28,25.0]
[1674221359125,17.0,21.289,21.28,15.0]
[1674221359959,17.0,21.289,21.279,48.8115895]
[1674221360177,17.0,21.289,21.28,10.0]
[1674221360597,17.0,21.289,21.28,59.20873494]
[1674221361121,17.0,21.29,21.28,59.20873494]
[1674221361346,17.0,21.29,21.28,108.02032444]
[1674221361563,17.0,21.291,21.28,108.02032444]
[1674221363433,10.0,21.29,21.28,98.02032444]
[1674221363652,17.0,21.289,21.28,98.02032444]
[1674221364903,17.0,21.29,21.28,98.02032444]
[1674221366304,17.0,21.291,21.28,98.02032444]
[1674221366484,17.0,21.291,21.281,10.0]
[1674221367018,35.23,21.292,21.281,58.8115895]
[1674221367228,10.0,21.293,21.281,108.02032444]
[1674221368599,17.0,21.292,21.281,108.02032444]
[1674221368816,17.0,21.294,21.281,108.02032444]
[1674221369024,17.0,21.294,21.281,98.02032444]
[1674221369216,10.0,21.293,21.281,98.02032444]
[1674221369428,17.0,21.292,21.281,98.02032444]
[1674221369637,10.0,21.291,21.281,98.02032444]
[1674221369869,10.0,21.291,21.281,49.20873494]
[1674221369870,17.0,21.29,21.281,49.20873494]
[1674221370067,10.96,21.289,21.271,10.0]
[1674221370284,17.0,21.288,21.275,49.20873494]
[1674221370700,10.0,21.287,21.275,48.56574216]
[1674221370913,17.0,21.286,21.275,48.56574216]
[1674221372363,0.96,21.285,21.275,48.56574216]
[1674221374363,0.96,21.285,21.274,17.24]
[1674221374693,17.0,21.286,21.275,10.0]
[1674221375324,17.0,21.286,21.274,17.24]
[1674221375532,10.96,21.285,21.273,17.96]
[1674221375747,17.0,21.284,21.272,27.96]
[1674221377098,17.0,21.286,21.272,27.96]
[1674221377519,0.96,21.285,21.272,76.52574216]
[1674221378152,17.0,21.287,21.272,76.52574216]
[1674221378378,0.96,21.286,21.272,76.52574216]
[1674221380683,17.0,21.287,21.272,76.52574216]
[1674221380905,17.0,21.287,21.273,0.96]
[1674221381114,17.0,21.287,21.275,10.0]
[1674221381509,109.1404,21.289,21.275,10.0]
[1674221381837,109.1404,21.289,21.277,10.0]
[1674221382797,109.1404,21.289,21.277,58.56574216]
[1674221383941,10.0,21.288,21.277,58.56574216]
[1674221384152,10.0,21.288,21.277,48.56574216]
[1674221384576,17.0,21.287,21.277,48.56574216]
[1674221390034,17.0,21.288,21.278,10.0]
[1674221390244,17.0,21.288,21.279,20.0]
[1674221390560,17.0,21.288,21.28,10.0]
[1674221390760,10.0,21.293,21.28,10.0]
[1674221390967,35.23,21.294,21.28,73.57574216]
[1674221391187,45.23,21.295,21.281,48.56574216]
[1674221391406,45.23,21.295,21.282,10.0]
[1674221392234,17.96,21.294,21.282,10.0]
[1674221396122,17.0,21.294,21.282,10.0]
[1674221396756,52.23,21.294,21.281,48.56574216]
[1674221396979,10.0,21.293,21.281,48.56574216]
[1674221397180,17.0,21.292,21.281,48.56574216]
[1674221397403,10.0,21.291,21.281,48.56574216]
[1674221397620,17.0,21.29,21.281,48.56574216]
[1674221400559,0.96,21.289,21.278,10.0]
[1674221400764,0.96,21.289,21.279,20.0]
[1674221400982,0.96,21.289,21.276,48.3067735]
[1674221401201,0.96,21.289,21.274,10.0]
[1674221401409,10.96,21.289,21.274,10.0]
[1674221401619,17.0,21.288,21.275,14.61]
[1674221402019,0.96,21.287,21.274,10.0]
[1674221403622,17.0,21.288,21.274,23.26]
[1674221403829,35.24,21.291,21.275,41.91446556]
[1674221404037,45.23,21.294,21.275,41.91446556]
[1674221404228,10.0,21.294,21.276,10.0]
[1674221404438,45.23,21.294,21.277,34.91]
[1674221404656,45.23,21.294,21.277,76.82446556]
[1674221404857,10.0,21.294,21.278,10.0]
[1674221405064,10.0,21.294,21.279,20.0]
[1674221405276,10.0,21.294,21.28,10.0]
[1674221406015,10.0,21.294,21.28,25.04]
[1674221407390,17.0,21.291,21.28,25.04]
[1674221409610,17.0,21.291,21.28,15.04]
[1674221410026,17.0,21.291,21.281,10.0]
[1674221410451,35.23,21.295,21.281,10.0]
[1674221410664,111.5023,21.296,21.282,0.96]
[1674221410873,145.5977,21.301,21.283,23.99]
[1674221411084,145.5977,21.301,21.284,10.96]
[1674221411285,145.5977,21.301,21.286,10.0]
[1674221411503,10.0,21.3,21.287,20.96]
[1674221412035,110.3777,21.301,21.288,10.0]
[1674221412238,110.3777,21.301,21.289,20.0]
[1674221412645,17.0,21.3,21.289,20.0]
[1674221418032,17.0,21.3,21.29,10.0]
[1674221418229,35.22,21.302,21.29,10.0]
[1674221418448,35.21,21.305,21.29,25.04]
[1674221418648,35.21,21.306,21.291,0.96]
[1674221418856,35.21,21.306,21.29,25.04]
[1674221419078,10.0,21.305,21.29,25.04]
[1674221419394,35.21,21.304,21.29,25.04]
[1674221419809,35.21,21.306,21.291,0.96]
[1674221420426,35.21,21.306,21.29,25.04]
[1674221420657,35.21,21.306,21.29,15.04]
[1674221421076,27.0,21.305,21.29,15.04]
[1674221421269,36.17,21.304,21.289,20.0]
[1674221421479,17.0,21.303,21.289,20.0]
[1674221421689,35.22,21.302,21.29,10.0]
[1674221421908,17.0,21.301,21.29,25.04]
[1674221422639,17.0,21.302,21.29,25.04]
[1674221423915,17.0,21.302,21.281,32.29]
[1674221424113,66.18,21.301,21.281,10.0]
[1674221424317,17.0,21.3,21.281,10.0]
[1674221424546,35.22,21.299,21.281,10.0]
[1674221424755,17.0,21.298,21.283,10.0]
[1674221425264,17.0,21.298,21.284,0.96]
[1674221425476,52.22,21.3,21.284,0.96]
[1674221426861,17.0,21.3,21.29,15.04]
[1674221427051,17.0,21.301,21.291,10.0]
[1674221427266,17.0,21.303,21.291,10.0]
[1674221428523,17.0,21.304,21.291,10.0]
[1674221429053,17.0,21.304,21.29,15.04]
[1674221429272,45.22,21.303,21.29,15.04]
[1674221429590,17.0,21.302,21.29,15.04]
[1674221429909,10.0,21.301,21.29,15.04]
[1674221430120,17.0,21.3,21.288,10.0]
[1674221430333,17.0,21.3,21.289,20.0]
[1674221430744,52.22,21.3,21.289,20.0]
[1674221432428,17.0,21.3,21.289,20.0]
[1674221432964,17.0,21.3,21.29,10.0]
[1674221433146,17.0,21.301,21.29,10.0]
[1674221433669,17.0,21.302,21.29,10.0]
[1674221433881,52.22,21.303,21.29,10.0]
[1674221434966,17.0,21.303,21.29,10.0]
[1674221435155,52.22,21.303,21.29,10.0]
[1674221437982,52.22,21.303,21.29,25.0]
[1674221438197,17.0,21.303,21.291,0.96]
[1674221438418,17.0,21.304,21.291,0.96]
[1674221439445,17.0,21.304,21.29,25.0]
[1674221439660,35.22,21.303,21.29,25.0]
[1674221439872,27.0,21.302,21.29,25.0]
[1674221440513,17.0,21.302,21.29,25.0]
[1674221444838,17.0,21.303,21.29,25.0]
[1674221445055,17.0,21.304,21.29,25.0]
[1674221451971,17.0,21.305,21.29,25.0]
[1674221452937,17.0,21.305,21.29,46.84]
[1674221453254,17.0,21.305,21.29,25.0]
[1674221454404,36.17,21.304,21.29,25.0]
[1674221454599,17.0,21.303,21.29,25.0]
[1674221454814,35.22,21.302,21.29,25.0]
[1674221455022,17.0,21.301,21.29,25.0]
[1674221455773,17.0,21.302,21.29,25.0]
[1674221458320,17.0,21.302,21.29,15.0]
[1674221458512,17.0,21.302,21.289,20.0]
[1674221458727,45.22,21.301,21.287,20.0]
[1674221458932,17.0,21.3,21.287,20.0]
[1674221460012,17.0,21.3,21.288,10.0]
[1674221460213,17.0,21.3,21.289,20.0]
[1674221465583,17.0,21.301,21.289,20.0]
[1674221467862,17.0,21.302,21.289,20.0]
[1674221468296,36.18,21.301,21.289,20.0]
[1674221468505,17.0,21.3,21.289,20.0]
[1674221468704,10.0,21.299,21.286,30.0]
[1674221468916,17.0,21.298,21.286,30.0]
[1674221469333,17.0,21.298,21.286,20.0]
[1674221469544,10.0,21.297,21.284,10.22]
[1674221469771,17.0,21.296,21.282,10.22]
[1674221470088,134.9035,21.296,21.28,25.28]
[1674221470488,10.0,21.295,21.281,10.0]
[1674221470704,17.0,21.294,21.281,10.0]
[1674221471337,17.0,21.295,21.282,0.96]
[1674221471976,17.0,21.295,21.281,10.0]
[1674221472378,10.96,21.294,21.281,10.0]
[1674221472620,17.0,21.293,21.281,10.0]
[1674221473024,17.0,21.293,21.28,25.04]
[1674221473226,17.0,21.293,21.28,15.04]
[1674221473448,10.0,21.292,21.273,15.94]
[1674221473648,52.24,21.291,21.271,15.94]
[1674221473864,10.96,21.29,21.272,10.0]
[1674221474072,52.24,21.289,21.272,10.0]
[1674221474484,10.0,21.288,21.272,10.0]
[1674221474695,17.0,21.287,21.272,10.0]
[1674221474919,10.96,21.286,21.272,10.0]
[1674221475119,17.0,21.285,21.272,10.0]
[1674221475747,17.0,21.287,21.272,10.0]
[1674221475968,0.96,21.286,21.273,18.81]
[1674221476180,17.96,21.286,21.273,18.81]
[1674221477878,10.0,21.285,21.273,18.81]
[1674221478196,17.96,21.284,21.273,18.81]
[1674221478393,10.0,21.283,21.273,18.81]
[1674221478605,17.0,21.282,21.272,20.62]
[1674221479568,17.0,21.284,21.272,20.62]
[1674221479874,17.0,21.284,21.273,10.0]
[1674221480086,17.0,21.284,21.272,20.62]
[1674221480298,17.0,21.284,21.271,10.0]
[1674221480496,10.0,21.283,21.27,23.22]
[1674221480714,10.0,21.283,21.266,24.0]
[1674221480715,17.96,21.282,21.266,24.0]
[1674221480916,35.25,21.281,21.267,20.0]
[1674221481137,10.0,21.279,21.267,20.0]
[1674221481345,17.0,21.278,21.267,20.0]
[1674221481655,17.0,21.278,21.266,20.0]
[1674221481983,35.25,21.282,21.266,20.0]
[1674221482290,17.0,21.281,21.267,10.0]
[1674221482516,17.0,21.281,21.268,20.96]
[1674221483454,10.0,21.28,21.268,20.0]
[1674221483657,17.0,21.279,21.268,20.0]
[1674221483974,35.25,21.282,21.269,10.0]
[1674221484180,35.25,21.284,21.27,15.04]
[1674221484388,45.24,21.288,21.271,10.96]
[1674221485551,35.24,21.288,21.271,10.96]
[1674221485749,35.24,21.288,21.272,20.0]
[1674221486078,35.23,21.293,21.273,47.08]
[1674221486300,35.23,21.293,21.275,10.0]
[1674221486477,35.23,21.293,21.276,20.96]
[1674221486688,35.23,21.293,21.277,10.0]
[1674221487123,35.23,21.293,21.278,20.0]
[1674221487333,17.0,21.288,21.278,20.0]
[1674221487775,10.0,21.287,21.276,20.0]
[1674221487987,17.0,21.286,21.276,20.0]
[1674221488819,17.0,21.286,21.275,20.0]
[1674221489024,0.96,21.285,21.27,25.04]
[1674221489234,10.96,21.285,21.27,25.04]
[1674221489461,52.25,21.284,21.27,25.04]
[1674221489672,10.0,21.283,21.27,25.04]
[1674221489882,17.0,21.282,21.27,25.04]
[1674221491774,10.0,21.281,21.27,15.04]
[1674221491968,17.0,21.28,21.27,15.04]
[1674221493022,17.0,21.282,21.27,15.04]
[1674221493225,116.7648,21.285,21.271,10.96]
[1674221497649,52.25,21.284,21.271,10.96]
[1674221498191,10.0,21.283,21.271,10.96]
[1674221498377,10.0,21.283,21.271,10.0]
[1674221498596,17.0,21.282,21.27,63.24675697]
[1674221498819,17.0,21.282,21.27,15.04]